Cogmind - Beta 16 *** ADVENTURER MODE // 2026.02.01 @ 13:08:38 Player: Armok Result: Destroyed by Y-64 Sentinel with Wave Gun Performance ------------- Evolutions (6) 3000 Regions Visited (17) 3400 Robots Destroyed (167) 835 Value Destroyed (4922) 4922 Prototype IDs (37) 740 Alien Tech Used (0) 0 Bonus (580) 580 TOTAL SCORE: 13477 Bonus ------- Follower Combat Kills 297 Aligned with FarCom 300 Friendly Fire -17 Cogmind --------- Core Integrity 0/1150 Matter 300/300 Energy 98/100 System Corruption 3% Temperature Cool (9) Movement Core (50) Location -4/Factory Parts ------- > --- POWER (1) -------- (None) > --- PROPULSION (4) --- (None) > --- UTILITY (12) ----- Advanced Signal Interpreter 0b10 Alert Chip Hacking Suite Hacking Suite Advanced Hacking Suite > --- WEAPON (2) ------- (None) > --- INVENTORY (5) ---- Micro Fission Core Advanced Trap Scanner Utility Shielding Chainsword Peak State ------------ > --- POWER ------------ Light Fission Core > --- PROPULSION ------- Cooled VTOL Module Biomechanical Wings Field Propulsion Drive Field Propulsion Drive > --- UTILITY ---------- Small Storage Unit Advanced Trap Scanner Advanced Signal Interpreter 0b10 Alert Chip Improved Melee Analysis Suite Transmission Jammer Advanced Reaction Control System Improved Focal Shield Hacking Suite Hacking Suite Hacking Suite Improved Hacking Suite > --- WEAPON ----------- Power Sword > --- INVENTORY -------- Micro Nuclear Core Micro Fission Core Medium Storage Unit Reaction Control System Advanced Hacking Suite Axe Chainsword [Rating: 89] Favorites ----------- Power Light Nuclear Core Engine Light Ion Engine Power Core Light Nuclear Core Propulsion Wheel Leg Aluminum Leg Wheel Wheel Flight Unit Cooled VTOL Module Utility Huge Storage Unit Device ECM Suite Storage Huge Storage Unit Processor 0b10 Alert Chip Hackware Hacking Suite Protection Utility Shielding Weapon Katana Energy Gun Field Laser Energy Cannon Beam Cannon Ballistic Gun Light Assault Rifle Launcher Mini Grenade Launcher Special Weapon Remote Datajack Impact Weapon Flail Slashing Weapon Katana Special Melee Weapon Datajack Build | -11 -10 -10 -9 -9 -9 -8 -8 -7 -7 -7 -6 -6 -6 -5 -5 -5 -4 ------- Run | Yrd Mat Min Mat Min Exi Min Mat Fac Low Low Fac Low Low Fac Upp Upp Fac Slots Evolved 12 | . . . 2 . . . 2 2 . . 2 . . 2 . . 2 Power . | . . . . . . . . . . . . . . . . . . Propulsion 2 | . . . 1 . . . 1 . . . . . . . . . . Utility 10 | . . . 1 . . . 1 2 . . 2 . . 2 . . 2 Weapon . | . . . . . . . . . . . . . . . . . . Parts Attached 139 | 6 12 1 15 13 4 3 21 29 3 . 8 1 . 14 2 . 7 Power 19 | 1 . . 1 1 . . 3 6 2 . 3 . . 2 . . . Engine 6 | 1 . . 1 . . . 1 2 . . 1 . . . . . . Core 13 | . . . . 1 . . 2 4 2 . 2 . . 2 . . . Reactor . | . . . . . . . . . . . . . . . . . . Propulsion 42 | 2 4 . 4 9 . 1 10 7 . . 1 . . 2 2 . . Treads . | . . . . . . . . . . . . . . . . . . Leg 3 | . . . . 3 . . . . . . . . . . . . . Wheel 28 | 2 4 . 4 6 . 1 8 3 . . . . . . . . . Hover . | . . . . . . . . . . . . . . . . . . Flight 11 | . . . . . . . 2 4 . . 1 . . 2 2 . . Utility 44 | 1 2 1 3 1 . . 6 11 . . 4 . . 8 . . 7 Device 11 | . 1 . . . . . 1 1 . . . . . 4 . . 4 Storage 3 | 1 1 . . . . . . 1 . . . . . . . . . Processor 9 | . . 1 . . . . 1 5 . . 2 . . . . . . Hackware 7 | . . . . . . . . 1 . . 1 . . 3 . . 2 Protection 14 | . . . 3 1 . . 4 3 . . 1 . . 1 . . 1 Artifact . | . . . . . . . . . . . . . . . . . . Weapon 34 | 2 6 . 7 2 4 2 2 5 1 . . 1 . 2 . . . Energy Gun 7 | . 1 . 4 1 1 . . . . . . . . . . . . Energy Cannon 3 | . 1 . 1 . . . 1 . . . . . . . . . . Ballistic Gun 5 | 2 1 . 2 . . . . . . . . . . . . . . Ballistic Cannon . | . . . . . . . . . . . . . . . . . . Launcher 6 | . 3 . . . 2 . . 1 . . . . . . . . . Special Weapon 3 | . . . . 1 . . . 1 . . . . . 1 . . . Impact Weapon 2 | . . . . . . 2 . . . . . . . . . . . Slashing Weapon 7 | . . . . . . . 1 3 1 . . 1 . 1 . . . Piercing Weapon . | . . . . . . . . . . . . . . . . . . Special Melee Weapon 1 | . . . . . 1 . . . . . . . . . . . . Unidentified Prototypes 3 | . . . 1 . . . 1 . . . 1 . . . . . . Parts Lost 57 | . 2 . 6 5 . 2 . 15 3 . 1 . . 6 5 . 12 Power 8 | . . . 1 . . 1 . 2 2 . . . . 1 . . 1 Propulsion 25 | . 2 . 3 4 . 1 . 7 . . . . . 1 3 . 4 Utility 15 | . . . 1 . . . . 2 . . 1 . . 3 2 . 6 Weapon 9 | . . . 1 1 . . . 4 1 . . . . 1 . . 1 Highest Loss Streak 9 | . 1 . 2 4 . 2 . 7 1 . 1 . . 3 4 . 9 To Critical Strikes 1 | . . . . . . . . 1 . . . . . . . . . Average Backups 15 | 2 10 14 19 23 23 23 23 15 7 8 7 8 8 7 7 6 7 Power 1 | 1 1 2 3 2 2 2 1 1 . 1 1 1 1 1 2 2 1 Propulsion 1 | . . 1 . . 1 . 2 2 . . . 1 1 1 1 . . Utility 8 | . 4 5 9 10 11 12 13 8 5 5 4 5 5 3 3 3 3 Weapon 4 | . 3 5 6 8 8 8 5 2 . 1 1 1 1 1 1 1 1 Tool/Special . | . . . . . . . . . . . . . . . . . . Unused Backups 54 | . 1 . 6 7 1 . 8 14 1 1 3 . . 7 . 1 4 Power 15 | . . . 1 2 1 . 1 1 . . 3 . . 5 . . 1 Propulsion 4 | . . . . 2 . . 1 1 . . . . . . . . . Utility 26 | . . . 1 3 . . 5 12 1 1 . . . . . 1 2 Weapon 9 | . 1 . 4 . . . 1 . . . . . . 2 . . 1 Tool/Special . | . . . . . . . . . . . . . . . . . . Average Slot Usage (%) 95 | . 94 100 96 96 100 100 99 94 91 92 95 100 100 94 91 82 87 Engine 4 | . 14 14 10 . . 6 5 2 . . . . . . . . . Core 4 | . . . . 10 11 4 3 3 6 7 6 6 6 5 5 5 4 Wheel 19 | . 26 28 30 26 33 33 35 14 . . . . . . . . . Flight 9 | . . . . . . . . 14 30 30 26 26 26 22 23 23 18 Device 2 | . 10 1 5 . . . . . . . . . . 2 9 5 14 Storage 8 | . 14 14 11 11 11 11 9 7 7 7 6 6 6 5 5 5 4 Processor 13 | . . 12 11 11 11 11 9 19 15 15 20 20 20 17 17 17 14 Hackware 4 | . . . . . . . . 3 7 7 8 13 13 20 17 17 20 Protection 10 | . . . 4 11 11 11 17 14 15 15 16 13 13 8 4 . 3 Energy Gun 4 | . 3 14 12 20 12 . . . . . . . . . . . . Energy Cannon 2 | . 3 14 7 . . . 4 . . . . . . . . . . Ballistic Gun 1 | . 21 . 1 . . . . . . . . . . . . . . Launcher 2 | . . . . . 2 18 4 3 . . . . . . . . . Slashing Weapon 3 | . . . . . . . 5 6 6 7 6 6 6 5 5 5 4 Peak Build Rating 89 | 6 9 10 20 21 21 19 30 51 51 47 61 62 62 76 76 68 89 Average Rating 34 | 4 7 9 14 20 19 18 24 39 47 47 56 61 62 67 73 67 80 On Entrance 37 | . 6 9 10 20 21 19 19 26 51 47 47 61 62 62 76 67 67 Avg Prop Armor Cover (%) 9 | . . . 9 12 . . 9 10 . . . . . 3 . . . Naked Turns . | . . . . . . . . . . . . . . . . . . Heaviest Build 102 | 10 91 91 99 96 96 98 102 95 18 16 21 21 21 22 22 18 24 Greatest Support 58 | 26 26 20 36 30 30 30 46 58 20 20 30 30 21 30 29 25 27 Greatest Overweight (x) 10 | . 8 4 9 9 3 3 10 5 . . . . . 1 . . 1 Average Overweight (x) 1 | . 2 4 3 4 3 3 3 . . . . . . . . . . Largest Inventory Capacity 25 | 8 25 25 25 25 25 25 25 25 8 8 8 8 8 8 8 8 8 Average Capacity 18 | 7 20 25 25 25 25 25 25 16 8 8 8 8 8 8 8 8 7 Most Carried 25 | 5 13 16 25 25 25 25 25 25 8 8 8 8 8 8 8 8 8 Average Carried 16 | 2 10 14 20 24 24 24 24 16 7 7 7 7 8 7 7 6 7 Final Capacity 25 | 8 25 25 25 25 25 25 25 8 8 8 8 8 8 8 8 8 5 Final Carried 25 | 2 13 16 25 24 25 25 25 8 8 8 8 8 8 8 6 7 4 Class Distribution -------------------- 31% | Hacker-Sprinter 28% | Mutant 25% | Scavenger-Mutant 6% | Scientist-Mutant 3% | Assassin 3% | Hacker-Ninja Dominant Class ---------------- Mutant | -10/Materials Mutant | -10/Mines Scavenger-Mutant | -9/Materials Scavenger-Mutant | -9/Mines Scavenger-Mutant | -9/Exiles Scavenger-Mutant | -8/Mines Mutant | -8/Materials Hacker-Sprinter | -7/Factory Hacker-Sprinter | -7/Lower Caves Hacker-Sprinter | -7/Lower Caves Hacker-Sprinter | -6/Factory Hacker-Sprinter | -6/Lower Caves Hacker-Sprinter | -6/Lower Caves Hacker-Sprinter | -5/Factory Hacker-Sprinter | -5/Upper Caves Hacker-Sprinter | -5/Upper Caves Hacker-Ninja | -4/Factory Resources | -11 -10 -10 -9 -9 -9 -8 -8 -7 -7 -7 -6 -6 -6 -5 -5 -5 -4 ----------- Run | Yrd Mat Min Mat Min Exi Min Mat Fac Low Low Fac Low Low Fac Upp Upp Fac Matter Collected 2806 | 246 342 33 239 225 . 133 527 499 97 . 107 2 33 238 13 12 60 Remotely . | . . . . . . . . . . . . . . . . . . Salvage Created 5802 | . 449 113 785 764 14 269 1323 1230 456 . 35 . . 348 . . 16 Parts 339 | . 33 9 46 30 3 14 80 76 22 . . . . 25 . . 1 Haulers Intercepted . | . . . . . . . . . . . . . . . . . . Recyclers Shooed 2 | . 1 1 . . . . . . . . . . . . . . . Parts Field Recycled . | . . . . . . . . . . . . . . . . . . Retrieved Matter . | . . . . . . . . . . . . . . . . . . Parts Self-Destructed 21 | . . . . . . . . . 20 . . 1 . . . . . Prevented 2 | . . . . . . . . . . . . . . . 2 . . Parts Restored . | . . . . . . . . . . . . . . . . . . Kills | -11 -10 -10 -9 -9 -9 -8 -8 -7 -7 -7 -6 -6 -6 -5 -5 -5 -4 ------- Run | Yrd Mat Min Mat Min Exi Min Mat Fac Low Low Fac Low Low Fac Upp Upp Fac Combat Hostiles Destroyed 110 | . 10 4 13 11 1 10 27 17 13 . . . . 4 . . . Melee 52 | . . . . . . . 18 17 13 . . . . 4 . . . Guns 21 | . 3 2 9 7 . . . . . . . . . . . . . Cannons 9 | . . 2 4 3 . . . . . . . . . . . . . AOE 22 | . 7 . . . 1 10 4 . . . . . . . . . . Classes Destroyed 13 | . 7 . 2 1 . 1 . 2 . . . . . . . . . Worker 12 | . 1 . 4 1 . . 2 4 . . . . . . . . . Builder 7 | . 3 . . 2 . 1 1 . . . . . . . . . . Tunneler 4 | . 1 . . 2 . . . 1 . . . . . . . . . Recycler 11 | . 2 . 1 4 . 1 1 2 . . . . . . . . . Operator 5 | . . . 2 . . . . 2 . . . . . . . . 1 Watcher 20 | . 3 . 4 . . . 4 4 . . 1 . . 4 . . . Swarmer 27 | . 6 2 1 . . 3 7 . 8 . . . . . . . . Grunt 54 | . 4 2 8 7 1 5 15 7 5 . . . . . . . . Sentry 11 | . . . 4 2 . . 5 . . . . . . . . . . Specialist 2 | . . . . . . . . 2 . . . . . . . . . Hunter 3 | . . . . . . 2 . 1 . . . . . . . . . Programmer 11 | . . . . . . . . 7 . . . . . 4 . . . Assembled 2 | . . . . 2 . . . . . . . . . . . . . Best Kill Streak 6 | . 6 2 5 3 1 6 5 4 4 . 1 . . 2 . . 1 Combat Bots Only 5 | . 5 2 3 3 1 4 5 4 4 . . . . 2 . . . Max Kills in Single Turn 3 | . 3 1 1 1 1 3 3 1 1 . 1 . . 1 . . 1 Gunslinging . | . . . . . . . . . . . . . . . . . . Exploded 3 | . 3 . . . 1 3 3 . . . . . . . . . . Melee 1 | . . . . . . . 1 1 1 . . . . 1 . . . Uniques/NPCs Destroyed . | . . . . . . . . . . . . . . . . . . Combat | -11 -10 -10 -9 -9 -9 -8 -8 -7 -7 -7 -6 -6 -6 -5 -5 -5 -4 -------- Run | Yrd Mat Min Mat Min Exi Min Mat Fac Low Low Fac Low Low Fac Upp Upp Fac Hostile Shots Fired 1003 | . 42 8 54 52 6 19 95 245 78 . 84 27 13 47 59 7 167 Missed 402 | . 6 2 19 7 3 5 30 96 36 . 39 11 7 26 41 5 69 Hits 601 | . 36 6 35 45 3 14 65 149 42 . 45 16 6 21 18 2 98 Melee 1 | . . . . . . . . 1 . . . . . . . . . Projectile 600 | . 36 6 35 45 3 14 65 148 42 . 45 16 6 21 18 2 98 AOE 4 | . . . . . . . . . . . 1 . . . . . 3 Critical Strikes 17 | . . . 1 . . . 4 5 . . . . . 1 1 . 5 Actively Blocked 2 | . . . . . . . . 1 . . . . . . . . 1 Damage Taken 7438 | . 280 35 490 496 43 194 729 1592 530 . 281 182 49 713 248 31 1545 Core 2855 | . 53 18 105 136 . 34 116 447 243 . 108 23 37 277 79 15 1164 Absorbed by Shields 52 | . . . . . . . . . . . . . . 4 . . 48 Redirected to Shielding 236 | . . . . . . . . 62 47 . 37 3 . 29 . . 58 Ignored by Resistances 2174 | . 91 12 141 133 12 60 212 474 151 . 102 55 14 188 70 8 451 Regen/Repaired (Parts) 88 | . . . . . . . 23 46 . . . . . 19 . . . Core Remaining (%) 60 | 100 . 71 . . . 31 78 . . 1 . . 80 . . 62 . Volleys Fired 192 | . 47 9 60 45 3 12 8 3 . . . 5 . . . . . Largest 2 | . 2 2 2 2 2 2 1 1 . . . 1 . . . . . Hottest 163 | . 125 125 130 163 60 60 75 30 . . . 5 . . . . . Shots Fired 341 | . 94 19 108 77 6 21 8 3 . . . 5 . . . . . Gun 224 | . 83 9 69 63 . . . . . . . . . . . . . Cannon 59 | . 2 10 39 4 . . 4 . . . . . . . . . . Launcher 43 | . 9 . . . 6 21 4 3 . . . . . . . . . Special 15 | . . . . 10 . . . . . . . 5 . . . . . Kinetic 85 | . 81 . 4 . . . . . . . . . . . . . . Thermal 208 | . 4 19 104 77 . . 4 . . . . . . . . . . Explosive 43 | . 9 . . . 6 21 4 3 . . . . . . . . . Electromagnetic . | . . . . . . . . . . . . . . . . . . Robot Hit Streak 26 | . 26 3 17 19 . 5 9 1 . . . 6 . . . . . Robot Miss Streak 3 | . 2 3 2 1 . 1 1 1 . . . . . . . . . Penetration Max . | . . . . . . . . . . . . . . . . . . Secondary Targets . | . . . . . . . . . . . . . . . . . . Shots Hit Robots 448 | . 77 10 82 52 4 9 67 81 29 . 7 6 . 23 . . 1 Core Hits 206 | . 38 4 35 23 2 17 33 29 14 . 1 . . 10 . . . Critical Kills 2 | . . . . . . . 2 . . . . . . . . . . Critical Parts Destroyed 3 | . . . . . . . 3 . . . . . . . . . . Critical Strikes 30 | . . . 2 4 . . 6 11 4 . 2 . . 1 . . . Burn 6 | . . . 2 4 . . . . . . . . . . . . . Smash 5 | . . . . . . . 5 . . . . . . . . . . Sever 19 | . . . . . . . 1 11 4 . 2 . . 1 . . . Melee Attacks 210 | . . . . . 4 . 64 79 29 . 7 3 . 23 . . 1 Impact 33 | . . . . . . . 33 . . . . . . . . . . Slashing 173 | . . . . . . . 31 79 29 . 7 3 . 23 . . 1 Piercing . | . . . . . . . . . . . . . . . . . . Sneak Attacks 20 | . . . . . 4 . 4 9 2 . . . . . . . 1 Combat Hostiles 3 | . . . . . . . . 1 2 . . . . . . . . Follow-up Attacks . | . . . . . . . . . . . . . . . . . . Damage Inflicted 13803 | . 1140 168 1312 966 203 1230 2579 3464 1281 . 281 39 . 1019 . . 121 Guns 2218 | . 575 81 766 796 . . . . . . . . . . . . . Cannons 783 | . . 87 546 50 . . 100 . . . . . . . . . . Explosions 2447 | . 565 . . . 203 1230 325 124 . . . . . . . . . Melee 8230 | . . . . . . . 2154 3340 1281 . 281 39 . 1019 . . 116 Ramming 5 | . . . . . . . . . . . . . . . . . 5 Kinetic 590 | . 548 . 42 . . . . . . . . . . . . . . Thermal 2661 | . 27 168 1270 966 . 130 100 . . . . . . . . . . Explosive 2317 | . 565 . . . 203 1100 325 124 . . . . . . . . . Electromagnetic . | . . . . . . . . . . . . . . . . . . Impact 1103 | . . . . . . . 1103 . . . . . . . . . . Slashing 7127 | . . . . . . . 1051 3340 1281 . 281 39 . 1019 . . 116 Piercing . | . . . . . . . . . . . . . . . . . . Highest Corruption 4 | . 2 2 . . . . . 4 4 4 . . . 3 3 3 3 Average Corruption 2 | . 1 2 . . . . . 3 4 4 . . . 2 3 3 1 Corruption Purged . | . . . . . . . . . . . . . . . . . . Corruption Blocked . | . . . . . . . . . . . . . . . . . . Effects 89 | . 6 9 . . . . . 50 12 . . . . 9 3 . . Message Errors 21 | . 1 . . . . . . 14 3 . . . . 3 . . . Matter Fused 28 | . 3 3 . . . . . 16 5 . . . . 1 . . . Heat Flow Errors 12 | . 1 2 . . . . . 5 1 . . . . 1 2 . . Energy Discharges 10 | . . 2 . . . . . 4 2 . . . . 1 1 . . Parts Fused 1 | . . . . . . . . 1 . . . . . . . . . Data Loss (minor) 9 | . . . . . . . . 8 . . . . . 1 . . . Data Loss (major) 5 | . 1 . . . . . . 2 1 . . . . 1 . . . Misfires 1 | . . 1 . . . . . . . . . . . . . . . Alerts 2 | . . 1 . . . . . . . . . . . 1 . . . Overload Shots . | . . . . . . . . . . . . . . . . . . Overflow Damage 764 | . . . 2 . . 3 257 326 24 . . . . 66 . . 86 Projectiles 2 | . . . 2 . . . . . . . . . . . . . . Explosions 52 | . . . . . . 3 37 12 . . . . . . . . . Melee 710 | . . . . . . . 220 314 24 . . . . 66 . . 86 Knockbacks 5 | . . . . . . . 5 . . . . . . . . . . Impact 5 | . . . . . . . 5 . . . . . . . . . . Kinetic . | . . . . . . . . . . . . . . . . . . Secondary . | . . . . . . . . . . . . . . . . . . Self-Inflicted Damage 32 | . 1 . . . . 29 . . . . . . . . . . 2 Shots 3 | . 1 . . . . 2 . . . . . . . . . . . Rammed 1 | . . . . . . . . . . . . . . . . . 1 Targets Rammed 1 | . . . . . . . . . . . . . . . . . 1 Kicked . | . . . . . . . . . . . . . . . . . . Crushed . | . . . . . . . . . . . . . . . . . . Highest Temperature 584 | . 250 372 360 584 24 43 36 277 184 . 56 324 . 148 270 . 1 Average Temperature 117 | . 52 118 101 176 11 19 19 130 86 . 21 159 . 51 79 . 1 Received Heat Transfer 2206 | . 126 . 204 240 . 63 459 573 180 . 72 15 9 36 36 . 193 Effects 20 | . . 2 5 13 . . . . . . . . . . . . . Shutdowns 4 | . . 1 . 3 . . . . . . . . . . . . . Energy Bleed 6 | . . 1 2 3 . . . . . . . . . . . . . Interference 1 | . . . . 1 . . . . . . . . . . . . . Matter Decay 1 | . . . . 1 . . . . . . . . . . . . . Short Circuit 3 | . . . 3 . . . . . . . . . . . . . . Damage (major) 4 | . . . . 4 . . . . . . . . . . . . . Damage (core) 1 | . . . . 1 . . . . . . . . . . . . . Siege Activations . | . . . . . . . . . . . . . . . . . . Martial Activations . | . . . . . . . . . . . . . . . . . . Shielding Activations . | . . . . . . . . . . . . . . . . . . Robots Disrupted . | . . . . . . . . . . . . . . . . . . Combat Hostiles . | . . . . . . . . . . . . . . . . . . Robots Corrupted 6 | . . . . . . . 6 . . . . . . . . . . Combat Hostiles 5 | . . . . . . . 5 . . . . . . . . . . Parts Fried 4 | . . . . . . . 4 . . . . . . . . . . Impact Corruptions 8 | . . . . . . . 8 . . . . . . . . . . Robots Melted 1 | . . . . 1 . . . . . . . . . . . . . Combat Hostiles 1 | . . . . 1 . . . . . . . . . . . . . Parts Melted 19 | . . 1 8 10 . . . . . . . . . . . . . Heat Transferred 6135 | . 74 370 3034 2359 . 150 148 . . . . . . . . . . Parts Sabotaged . | . . . . . . . . . . . . . . . . . . Parts Stolen . | . . . . . . . . . . . . . . . . . . Parts Stripped . | . . . . . . . . . . . . . . . . . . Power Chain Reactions . | . . . . . . . . . . . . . . . . . . Alert | -11 -10 -10 -9 -9 -9 -8 -8 -7 -7 -7 -6 -6 -6 -5 -5 -5 -4 ------- Run | Yrd Mat Min Mat Min Exi Min Mat Fac Low Low Fac Low Low Fac Upp Upp Fac Maximum Alert Level 1 | . . . 1 . . 1 . . . . . . . . . . . Low Security (%) 96 | 100 100 100 71 100 . 89 100 100 . . 100 . . 100 . . 100 Level 1 3 | . . . 28 . . 10 . . . . . . . . . . . Level 2 . | . . . . . . . . . . . . . . . . . . Level 3 . | . . . . . . . . . . . . . . . . . . Level 4 . | . . . . . . . . . . . . . . . . . . Level 5 . | . . . . . . . . . . . . . . . . . . High Security . | . . . . . . . . . . . . . . . . . . Max Security . | . . . . . . . . . . . . . . . . . . Peak Influence 279 | . 126 68 279 70 . 203 136 155 . . 50 . . 145 . . 62 Initial 60 | . . . . . . . 60 19 . . 33 . . 53 . . . Average 31 | . 24 12 95 8 . 130 30 11 . . 9 . . 30 . . 2 Influence Increases 4689 | . 339 121 840 245 20 373 787 739 352 . 90 96 156 347 108 . 76 Destroy 0b10 Robot/C 2284 | . 200 80 520 180 20 200 540 272 208 . . . . 64 . . . Destroy 0b10 Robot/NC 281 | . 50 . 60 45 . 10 40 52 . . 4 . . 16 . . 4 Destroy Leader 532 | . 46 20 160 10 . 40 118 88 24 . 2 . . 24 . . . Allied During Kill 57 | . . 6 51 . . . . . . . . . . . . . . Successful Hack 208 | . 17 . 31 . . . 25 48 . . 24 . . 63 . . . Disable Machine 36 | . 9 . . 9 . 9 9 . . . . . . . . . . Destroy Structure 178 | . 17 . 3 1 . 114 25 18 . . . . . . . . . Partial Spotted 48 | . . . . . . . . 12 . . 24 . . 12 . . . Lose Combat Pursuer 1065 | . . 15 15 . . . 30 249 120 . 36 96 156 168 108 . 72 Influence Decreases 4657 | . 339 121 840 245 20 190 920 753 287 39 152 66 89 419 103 29 45 Entered New Map 304 | . . . . . . . 123 31 17 29 29 . 9 44 12 9 1 Time Decay 3788 | . 287 121 620 205 20 170 737 650 240 10 123 66 80 345 80 20 14 Lost Part 274 | . 10 . 31 40 . 20 . 72 30 . . . . 30 11 . 30 Lost Ally 45 | . . . 45 . . . . . . . . . . . . . . Purge Threat 246 | . 42 . 144 . . . 60 . . . . . . . . . . Squads Dispatched 39 | . . . 7 . . . 3 21 . . 1 . 1 4 . . 2 Investigation 14 | . . . 5 . . . 2 5 . . . . . 1 . . 1 Extermination 12 | . . . . . . . . 7 . . 1 . . 3 . . 1 Reinforcement 8 | . . . 2 . . . 1 5 . . . . . . . . . Assault 2 | . . . . . . . . 1 . . . . 1 . . . . Garrison 3 | . . . . . . . . 3 . . . . . . . . . Intercept . | . . . . . . . . . . . . . . . . . . Searches Triggered . | . . . . . . . . . . . . . . . . . . Construction Impeded 1 | . . . . . . . 1 . . . . . . . . . . Haulers Reinforced . | . . . . . . . . . . . . . . . . . . Active Scanning Responses . | . . . . . . . . . . . . . . . . . . Cargo Convoy Interrupts 2 | . . . . . . . . 1 . . . . . . . . 1 Stealth | -11 -10 -10 -9 -9 -9 -8 -8 -7 -7 -7 -6 -6 -6 -5 -5 -5 -4 --------- Run | Yrd Mat Min Mat Min Exi Min Mat Fac Low Low Fac Low Low Fac Upp Upp Fac Distress Signals 7 | . . . 2 . . . 3 . . . . . . . . . 2 Communications Jammed 11 | . . . . . . . . . . . . . . . . . 11 Distress Signals 11 | . . . . . . . . . . . . . . . . . 11 Times Spotted 279 | . 19 5 31 11 3 9 35 48 25 . 4 8 9 24 15 4 29 Peak Tracking Total 27 | . 6 3 4 4 3 3 4 13 8 . 4 4 8 13 7 4 27 Tactical Retreats 39 | . 1 1 2 . . . 2 8 6 . 1 3 6 4 3 . 2 ECM-based Alert Blocks 3 | . 2 . 1 . . . . . . . . . . . . . . Traps | -11 -10 -10 -9 -9 -9 -8 -8 -7 -7 -7 -6 -6 -6 -5 -5 -5 -4 ------- Run | Yrd Mat Min Mat Min Exi Min Mat Fac Low Low Fac Low Low Fac Upp Upp Fac Traps Triggered 22 | . 3 . 5 . . . 2 6 . . . . . 5 . . 1 Indirectly . | . . . . . . . . . . . . . . . . . . Trap Hack Attempts . | . . . . . . . . . . . . . . . . . . Triggered . | . . . . . . . . . . . . . . . . . . Disarmed . | . . . . . . . . . . . . . . . . . . Reprogrammed . | . . . . . . . . . . . . . . . . . . Reused . | . . . . . . . . . . . . . . . . . . Traps Extracted . | . . . . . . . . . . . . . . . . . . Installed . | . . . . . . . . . . . . . . . . . . Triggered . | . . . . . . . . . . . . . . . . . . Machines | -11 -10 -10 -9 -9 -9 -8 -8 -7 -7 -7 -6 -6 -6 -5 -5 -5 -4 ---------- Run | Yrd Mat Min Mat Min Exi Min Mat Fac Low Low Fac Low Low Fac Upp Upp Fac Machines Disabled 4 | . 1 . . 1 . 1 1 . . . . . . . . . . Max in Single Turn 1 | . 1 . . 1 . 1 1 . . . . . . . . . . Garrison Access 3 | . . . . . . . 1 . . . . . . 2 . . . Machines Repaired . | . . . . . . . . . . . . . . . . . . Machines Dismantled . | . . . . . . . . . . . . . . . . . . Machines Sabotaged . | . . . . . . . . . . . . . . . . . . Overloaded Fab Kills . | . . . . . . . . . . . . . . . . . . Hacking | -11 -10 -10 -9 -9 -9 -8 -8 -7 -7 -7 -6 -6 -6 -5 -5 -5 -4 --------- Run | Yrd Mat Min Mat Min Exi Min Mat Fac Low Low Fac Low Low Fac Upp Upp Fac Machines Accessed 77 | . 10 . 10 . 5 . 11 15 . . 5 2 . 14 1 . 4 Terminals 39 | . 8 . 7 . . . 6 7 . . 3 . . 6 . . 2 Fabricators 4 | . . . . . . . . 2 . . . . . 1 . . 1 Repair Stations 4 | . . . . . . . 1 2 . . . . . 1 . . . Recycling Units 8 | . 2 . 1 . . . 2 1 . . . . . 1 . . 1 Scanalyzers 9 | . . . 2 . . . 1 2 . . 1 . . 3 . . . Garrison Access 5 | . . . . . . . 1 1 . . 1 . . 2 . . . Total Hacks 291 | . 31 . 45 . 50 . 49 33 . . 14 6 . 52 1 . 10 Successful 211 | . 21 . 33 . 50 . 33 17 . . 6 6 . 34 1 . 10 Failed 78 | . 10 . 12 . . . 15 16 . . 8 . . 17 . . . Catastrophic 10 | . 2 . 3 . . . . 2 . . 1 . . 2 . . . Database Lockouts 2 | . . . . . . . 1 . . . . . . 1 . . . Manual 107 | . 15 . 19 . 1 . 22 18 . . 9 . . 20 . . 3 Terminals 146 | . 25 . 23 . . . 32 20 . . 10 . . 29 . . 7 Fabricators 7 | . . . . . . . . 3 . . . . . 2 . . 2 Repair Stations 11 | . . . . . . . 4 3 . . . . . 4 . . . Recycling Units 20 | . 6 . 3 . . . 6 1 . . . . . 3 . . 1 Scanalyzers 42 | . . . 19 . . . 6 5 . . 3 . . 9 . . . Garrison Access 8 | . . . . . . . 1 1 . . 1 . . 5 . . . Terminal Hacks 106 | . 10 . 6 . 50 . 11 4 . . 1 6 . 13 1 . 4 Record 59 | . 3 . . . 49 . 2 . . . . 5 . . . . . Robot Analysis 2 | . . . 2 . . . . . . . . . . . . . . Prototype ID Bank 4 | . 2 . . . . . . . . . . . . 2 . . . Open Door 2 | . . . . . . . . . . . . 1 . . 1 . . Branch Access Points 6 | . . . 1 . . . 1 1 . . 1 . . 1 . . 1 Emergency Access Points 2 | . . . . . . . . . . . . . . 2 . . . Terminal Index 4 | . 1 . . . . . 1 1 . . . . . 1 . . . Fabricator Index 2 | . . . . . . . . 1 . . . . . 1 . . . Scanalyzer Index 4 | . 1 . . . . . 1 1 . . . . . 1 . . . Alert Level 8 | . 1 . 2 . . . 3 . . . . . . 2 . . . Unreport Threat 4 | . 1 . 1 . . . 2 . . . . . . . . . . Locate Traps 4 | . 1 . . . . . . . . . . . . 2 . . 1 Registered Prototypes 1 | . . . . . . . . . . . . . . . . . 1 Zone Layout 3 | . . . . . . . 1 . . . . . . 1 . . 1 Proto ID Catalog 1 | . . . . . 1 . . . . . . . . . . . . Fabricator Hacks 5 | . . . . . . . . 3 . . . . . . . . 2 Network Status 1 | . . . . . . . . 1 . . . . . . . . . Load Schematic 2 | . . . . . . . . 1 . . . . . . . . 1 Build 2 | . . . . . . . . 1 . . . . . . . . 1 Repair Station Hacks 9 | . . . . . . . 4 2 . . . . . 3 . . . Scan Component 5 | . . . . . . . 2 1 . . . . . 2 . . . Repair 4 | . . . . . . . 2 1 . . . . . 1 . . . Recycling Unit Hacks 15 | . 4 . 2 . . . 5 1 . . . . . 2 . . 1 Recycle Component 2 | . . . . . . . 2 . . . . . . . . . . Process 2 | . . . . . . . 2 . . . . . . . . . . Report Inventory 6 | . 2 . 1 . . . 1 . . . . . . 1 . . 1 Retrieve Components 5 | . 2 . 1 . . . . 1 . . . . . 1 . . . Scanalyzer 36 | . . . 18 . . . 5 3 . . 2 . . 8 . . . Insert Component 12 | . . . 6 . . . 1 1 . . 1 . . 3 . . . Analyze 12 | . . . 6 . . . 1 1 . . 1 . . 3 . . . Retrieve Study 12 | . . . 6 . . . 3 1 . . . . . 2 . . . Garrison Access Hacks 4 | . . . . . . . 1 . . . . . . 3 . . . Seal Access 3 | . . . . . . . 1 . . . . . . 2 . . . Coupler Status 1 | . . . . . . . . . . . . . . 1 . . . Unauthorized Hacks 36 | . 7 . 7 . . . 7 4 . . 3 . . 5 . . 3 Terminals 36 | . 7 . 7 . . . 7 4 . . 3 . . 5 . . 3 Assimilate 3 | . . . . . . . 1 . . . . . . 1 . . 1 Botnet 29 | . 7 . 6 . . . 5 4 . . 3 . . 3 . . 1 Operators 4 | . . . 1 . . . 1 . . . . . . 1 . . 1 Fabricators . | . . . . . . . . . . . . . . . . . . Repair Stations . | . . . . . . . . . . . . . . . . . . Recycling Units . | . . . . . . . . . . . . . . . . . . Scanalyzers . | . . . . . . . . . . . . . . . . . . Garrison Access . | . . . . . . . . . . . . . . . . . . Data Cores Recovered 2 | . . . . . . . . 1 . . . . . . . . 1 Used . | . . . . . . . . . . . . . . . . . . Hacking Detections 62 | . 10 . 8 . . . 10 13 . . 5 . . 12 . . 4 Full Trace Events 8 | . . . 3 . . . . 4 . . . . . . . . 1 Feedback Events . | . . . . . . . . . . . . . . . . . . Feedback Blocked . | . . . . . . . . . . . . . . . . . . Robot Schematics Acquired . | . . . . . . . . . . . . . . . . . . Robots Built . | . . . . . . . . . . . . . . . . . . Authchips . | . . . . . . . . . . . . . . . . . . Time . | . . . . . . . . . . . . . . . . . . Total Robot Build Rating . | . . . . . . . . . . . . . . . . . . Part Schematics Acquired 12 | . . . 6 . . . 1 1 . . 1 . . 3 . . . Parts Built 3 | . . . . . . . . 1 . . . . . . . . 2 Authchips . | . . . . . . . . . . . . . . . . . . Time 98 | . . . . . . . . 73 . . . . . . . . 25 Total Part Build Rating 5 | . . . . . . . . 3 . . . . . . . . 2 Part Studies Acquired 12 | . . . 6 . . . 3 1 . . . . . 2 . . . Parts Repaired 4 | . . . . . . . 2 1 . . . . . 1 . . . Time 128 | . . . . . . . 70 8 . . . . . 50 . . . Parts Recycled 2 | . . . . . . . 2 . . . . . . . . . . Recycled Matter 76 | . . . . . . . 76 . . . . . . . . . . Retrieved Matter . | . . . . . . . . . . . . . . . . . . Retrieved Components 17 | . 3 . 2 . . . . 9 . . . . . 3 . . . Parts Scanalyzed 12 | . . . 6 . . . 1 1 . . 1 . . 3 . . . Part Schematics Acquired 12 | . . . 6 . . . 1 1 . . 1 . . 3 . . . Parts Damaged 1 | . . . . . . . . . . . . . . 1 . . . Bothacking | -11 -10 -10 -9 -9 -9 -8 -8 -7 -7 -7 -6 -6 -6 -5 -5 -5 -4 ------------ Run | Yrd Mat Min Mat Min Exi Min Mat Fac Low Low Fac Low Low Fac Upp Upp Fac Used RIF Installer . | . . . . . . . . . . . . . . . . . . Robots Hacked 5 | . . . . . 2 . . . . . . 3 . . . . . Non-combat 4 | . . . . . 2 . . . . . . 2 . . . . . Combat 1 | . . . . . . . . . . . . 1 . . . . . Robot Hacks Applied 7 | . . . . . 2 . . . . . . 5 . . . . . parse_system 5 | . . . . . 2 . . . . . . 3 . . . . . no_distress 2 | . . . . . . . . . . . . 2 . . . . . Relay Couplers Released . | . . . . . . . . . . . . . . . . . . Fabnet Peak Effective % . | . . . . . . . . . . . . . . . . . . Robots Rewired . | . . . . . . . . . . . . . . . . . . Allies Hacked . | . . . . . . . . . . . . . . . . . . Hacks Repelled . | . . . . . . . . . . . . . . . . . . Allies | -11 -10 -10 -9 -9 -9 -8 -8 -7 -7 -7 -6 -6 -6 -5 -5 -5 -4 -------- Run | Yrd Mat Min Mat Min Exi Min Mat Fac Low Low Fac Low Low Fac Upp Upp Fac Total Allies 7 | . . 5 . 1 . . 1 . . . . . . . . . . Largest Group 5 | . . 5 5 1 . . 1 . . . . . . . . . . Highest-Rated Group 88 | . . 88 88 31 . . 10 . . . . . . . . . . Highest-Rated Ally 31 | . . 31 31 31 . . 10 . . . . . . . . . . Total Orders . | . . . . . . . . . . . . . . . . . . Ally Attacks 77 | . . 5 72 . . . . . . . . . . . . . . Total Damage 927 | . . 64 863 . . . . . . . . . . . . . . Kills 15 | . . . 15 . . . . . . . . . . . . . . Allies Corrupted . | . . . . . . . . . . . . . . . . . . Allies Melted . | . . . . . . . . . . . . . . . . . . Intel | -11 -10 -10 -9 -9 -9 -8 -8 -7 -7 -7 -6 -6 -6 -5 -5 -5 -4 ------- Run | Yrd Mat Min Mat Min Exi Min Mat Fac Low Low Fac Low Low Fac Upp Upp Fac Active Infowar (turns) 3179 | . 894 52 912 . . . 18 749 . . . . . . . . 554 Optics 749 | . . . . . . . . 749 . . . . . . . . . Traps 309 | . . . . . . . . . . . . . . . . . 309 Jamming 447 | . . . . . . . . . . . . . . . . . 447 ECM 1876 | . 894 52 912 . . . 18 . . . . . . . . . . Robot Analysis Total 2 | . . . 2 . . . . . . . . . . . . . . Derelict Logs Recovered 8 | . . 1 . 1 . . . . 1 . . 1 2 . 2 . . Drone Launches . | . . . . . . . . . . . . . . . . . . Drone Recoveries . | . . . . . . . . . . . . . . . . . . Exploration | -11 -10 -10 -9 -9 -9 -8 -8 -7 -7 -7 -6 -6 -6 -5 -5 -5 -4 ------------- Run | Yrd Mat Min Mat Min Exi Min Mat Fac Low Low Fac Low Low Fac Upp Upp Fac Turns Passed 15945 | 47 1204 584 1815 1057 833 347 2552 3531 497 39 578 242 163 1537 197 46 676 Spaces Moved 14545 | 43 830 376 1129 620 696 251 1097 2918 1200 144 990 804 416 1680 657 135 559 Core 89 | 11 . . . . . . . 1 . . . . . . . . 77 Treads . | . . . . . . . . . . . . . . . . . . Legs 2 | . . . . 2 . . . . . . . . . . . . . Wheels 5956 | 32 830 376 1129 618 696 251 1097 927 . . . . . . . . . Hover . | . . . . . . . . . . . . . . . . . . Flight 8498 | . . . . . . . . 1990 1200 144 990 804 416 1680 657 135 482 Fastest Speed 14 | 50 80 140 100 115 115 115 100 14 26 26 14 14 26 14 22 32 28 Average Speed 66 | 78 122 140 126 132 115 115 127 53 26 26 25 25 26 26 28 32 37 Slowest Speed 400 | 90 200 140 205 400 115 115 220 200 26 26 26 26 26 98 32 32 111 Overloaded Moves 438 | . . . . . . . . 34 . . 22 71 . 216 87 . 8 Propulsion Burnouts 2 | . . . . . . . . . . . . . . 1 1 . . Robots Hopped 52 | . . . . . . . . 19 4 . 7 . 1 15 2 . 4 Potential Cave-ins . | . . . . . . . . . . . . . . . . . . Cave-ins Triggered . | . . . . . . . . . . . . . . . . . . Exploration Rate (%) 56 | 4 96 78 71 83 93 57 61 62 94 23 24 58 70 36 77 21 17 Regions Visited 17 Branch Regions 10 Pre-discovered Areas 4 | . . 1 . 1 1 . . . . . . . 1 . . . . Known Exits Taken 13 | . . 1 1 1 1 1 1 1 . . 1 1 1 1 1 1 . Unknown Exits Taken 4 | 1 1 . . . . . . . 1 1 . . . . . . . Scrap Searched 18 | . . 1 . 4 . 1 . . 4 2 . 1 2 . 2 1 . Spaces Dug . | . . . . . . . . . . . . . . . . . . Terrain Destroyed 225 | . 15 . . 1 . 163 30 16 . . . . . . . . . Melee . | . . . . . . . . . . . . . . . . . . Projectile 1 | . . . . 1 . . . . . . . . . . . . . AOE 224 | . 15 . . . . 163 30 16 . . . . . . . . . Terrain Rammed . | . . . . . . . . . . . . . . . . . . Walls Destroyed . | . . . . . . . . . . . . . . . . . . Machines Disabled . | . . . . . . . . . . . . . . . . . . Actions | -11 -10 -10 -9 -9 -9 -8 -8 -7 -7 -7 -6 -6 -6 -5 -5 -5 -4 --------- Run | Yrd Mat Min Mat Min Exi Min Mat Fac Low Low Fac Low Low Fac Upp Upp Fac Total 20143 | 56 936 415 1410 767 719 286 2164 4749 1331 145 1305 836 469 2732 661 137 1025 Wait 4602 | . 24 27 141 54 2 13 908 1603 98 . 274 19 55 949 2 . 433 Move 14426 | 42 829 375 1128 619 695 250 1096 2881 1191 143 975 803 413 1649 652 134 551 Hop 50 | . . . . . . . . 17 4 . 7 . 1 15 2 . 4 Pick Up 233 | 8 18 3 37 19 2 3 35 48 4 1 18 2 . 24 1 2 8 Fast Attach . | . . . . . . . . . . . . . . . . . . Attach 91 | 6 3 . 11 9 . 2 2 27 3 . 4 . . 14 3 . 7 Detach 8 | . . . 1 . . . . 2 . . . . . 3 . . 2 Swap 102 | . 11 1 12 6 4 5 23 17 1 . 7 1 . 11 1 . 2 Drop 151 | . 4 . 20 15 1 1 28 42 1 1 13 2 . 14 . 1 8 Fire 192 | . 47 9 60 45 3 12 8 3 . . . 5 . . . . . Melee 210 | . . . . . 4 . 64 79 29 . 7 3 . 23 . . 1 Ram 1 | . . . . . . . . . . . . . . . . . 1 Kick . | . . . . . . . . . . . . . . . . . . Crush . | . . . . . . . . . . . . . . . . . . Escape Stasis 68 | . . . . . . . . 30 . . . . . 30 . . 8 Rewire 8 | . . . . . 8 . . . . . . . . . . . . Trap . | . . . . . . . . . . . . . . . . . . Miscellaneous 1 | . . . . . . . . . . . . 1 . . . . . Route ------- -11/Scrapyard -10/Materials (discovered 4 exits: *Mat x3 / [*Min]) -10/Mines -9/Materials (discovered 5 exits: *Mat x3 / *Min x2) -9/Mines (discovered 3 exits: *Mat x2 / *Exi) -9/Exiles (discovered 2 exits: *Min x2) -8/Mines -8/Materials (discovered 3 exits: *Fac x2 / *Sto) -7/Factory (discovered 3 exits: *Fac / *Low x2) -7/Lower Caves -7/Lower Caves -6/Factory (discovered 2 exits: *Low x2) -6/Lower Caves -6/Lower Caves -5/Factory (discovered 3 exits: *Fac / *Upp x2) -5/Upper Caves -5/Upper Caves -4/Factory (discovered 4 exits: Upp x2 / Ext x2) History --------- Turn | Location | Event 11 | -11/Scrapyard | Discovered new exit (range 15) 48 | -11/Scrapyard | Entered Materials 305 | -10/Materials | Discovered new exit (range 7) 317 | -10/Materials | Build established: Mutant 545 | -10/Materials | Discovered new exit (range 16) 699 | -10/Materials | Discovered new exit (range 16) 927 | -10/Materials | Discovered new exit (range 16) 1252 | -10/Materials | Entered Mines 1438 | -10/Mines | Found a hidden stash of uninstalled traps 1514 | -10/Mines | Met a Derelict testing a Signal Generator 1521 | -10/Mines | Found Signal Generator 1777 | -10/Mines | Assisted by bots powering up and referring to "LRC-V3" 1806 | -10/Mines | Discovered new exit (range 4) 1810 | -10/Mines | Identified exit to Materials 1836 | -10/Mines | Entered Materials 1836 | -9/Materials | Accompanied by 5 allies 1836 | -9/Materials | Evolved 2 slots: Propulsion x1, Utility x1 1841 | -9/Materials | Led the pair of lost Derelicts to an unsafe place 2169 | -9/Materials | Discovered new exit (range 9) 2540 | -9/Materials | Identified exit to Mines 2540 | -9/Materials | Discovered new exit (range 16) 2687 | -9/Materials | Build established: Scavenger-Mutant 3143 | -9/Materials | Discovered new exit (range 15) 3169 | -9/Materials | Identified exit to Materials 3651 | -9/Materials | Entered Mines 3653 | -9/Mines | Met a Derelict bent on vengeance 3761 | -9/Mines | Received a Mining Laser from a helpful Derelict 4166 | -9/Mines | Core integrity fell below 50% 4174 | -9/Mines | Learned location of Storage (-8) 4410 | -9/Mines | Discovered exit to Materials (range 11) 4443 | -9/Mines | Discovered exit to Materials (range 13) 4465 | -9/Mines | Excavation squad dispatched 4465 | -9/Mines | A large section of the Mines collapsed 4630 | -9/Mines | Lost 4 parts (3n1w) 4702 | -9/Mines | Deemed a non-threat by the Exiles lab entrance 4703 | -9/Mines | Discovered new exit (range 5) 4707 | -9/Mines | Identified exit to Exiles 4708 | -9/Mines | Entered Exiles 4738 | -9/Exiles | Discovered new exit (range 14) 4749 | -9/Exiles | Identified exit to Mines 4773 | -9/Exiles | Met 8R-AWN 4789 | -9/Exiles | Met EX-HEX 4928 | -9/Exiles | Met EX-DEC 4975 | -9/Exiles | Visited The Gauntlet 5146 | -9/Exiles | Discovered exit to Mines (range 14) 5195 | -9/Exiles | Learned location of Zion (-6) 5230 | -9/Exiles | Met EX-BIN 5248 | -9/Exiles | Aligned with FarCom system 5249 | -9/Exiles | Given EX-Vault access code 5306 | -9/Exiles | Opened EX-Vault 5317 | -9/Exiles | Found 0b10 Alert Chip 5341 | -9/Exiles | Warned to stay clear of 0b10 Research branches 5354 | -9/Exiles | Exiles lab attacked by MAIN.C 5541 | -9/Exiles | Left Exiles lab with 0b10 Alert Chip 5541 | -9/Exiles | Entered Mines 5855 | -8/Mines | Discovered exit to Materials (range 15) 5888 | -8/Mines | Entered Materials 5888 | -8/Materials | Evolved 2 slots: Propulsion x1, Utility x1 6091 | -8/Materials | Repaired Mni. Grenade Launcher+ 6130 | -8/Materials | Repaired System Shield 6484 | -8/Materials | Build established: Mutant 6777 | -8/Materials | Discovered new exit (range 7) 6989 | -8/Materials | Central database locked down 7079 | -8/Materials | Identified exit to Factory 7513 | -8/Materials | Build established: Scientist-Mutant 7856 | -8/Materials | Build established: Mutant 7898 | -8/Materials | Discovered new exit (range 15) 8203 | -8/Materials | Identified exit to Storage 8348 | -8/Materials | Discovered exit to Factory (range 16) 8440 | -8/Materials | Entered Factory 8440 | -7/Factory | Evolved 2 slots: Utility x2 8858 | -7/Factory | Build established: Assassin 9525 | -7/Factory | Build established: Scientist-Mutant 9718 | -7/Factory | Cargo convoy interrupted 9854 | -7/Factory | Fabricated Hacking Suite? 9954 | -7/Factory | Lost 3 parts (2n1u) 10286 | -7/Factory | Lost 7 parts (1p4n2w) 10299 | -7/Factory | Garrison activated, responded to threat 10333 | -7/Factory | Discovered new exit (range 8) 10338 | -7/Factory | Core integrity fell below 50% 10367 | -7/Factory | Lost 3 parts (1p1u1w) 10667 | -7/Factory | Build established: Hacker-Sprinter 11239 | -7/Factory | Identified exit to Lower Caves 11881 | -7/Factory | Repaired Utility Shielding 11971 | -7/Factory | Entered Lower Caves 12061 | -7/Lower Caves | Encountered a Warlord checkpoint 12072 | -7/Lower Caves | Discovered new exit (range 11) 12073 | -7/Lower Caves | Learned Factory trap positions 12114 | -7/Lower Caves | Attracted the attention of an 0b10 checkpoint 12144 | -7/Lower Caves | Attracted the attention of an 0b10 base 12235 | -7/Lower Caves | Core integrity fell below 20% 12238 | -7/Lower Caves | Lost 3 allies 12468 | -7/Lower Caves | Entered another Lower Caves area 12474 | -7/Lower Caves | Encountered a Warlord checkpoint 12493 | -7/Lower Caves | Discovered new exit (range 14) 12507 | -7/Lower Caves | Entered Factory 12507 | -6/Factory | Evolved 2 slots: Utility x2 12508 | -6/Factory | Loaded intel: 87 trap records 12564 | -6/Factory | Identified exit to Lower Caves 13085 | -6/Factory | Entered Lower Caves 13153 | -6/Lower Caves | Entered an active Warlord outpost 13167 | -6/Lower Caves | Learned Armory emergency access door positions 13167 | -6/Lower Caves | Learned Extension stockpile data 13167 | -6/Lower Caves | Learned Factory garrison access intel 13179 | -6/Lower Caves | Discovered new exit (range 10) 13181 | -6/Lower Caves | Identified exit to Lower Caves 13189 | -6/Lower Caves | Learned location of 1 exit from Factory 13193 | -6/Lower Caves | Activated DRS Beacon 13243 | -6/Lower Caves | Attracted the attention of an 0b10 checkpoint 13327 | -6/Lower Caves | Entered another Lower Caves area 13332 | -6/Lower Caves | Learned location of Extension (-4) 13418 | -6/Lower Caves | Attracted the attention of an 0b10 outpost 13420 | -6/Lower Caves | Spotted B-75 Beast 13482 | -6/Lower Caves | Discovered new exit (range 14) 13490 | -6/Lower Caves | Identified exit to Factory 13490 | -6/Lower Caves | Entered Factory 13490 | -5/Factory | Evolved 2 slots: Utility x2 13491 | -5/Factory | Identified exit to Upper Caves 13492 | -5/Factory | Loaded intel: 4 garrison access locations 13691 | -5/Factory | Repaired Broken Cld. Cesium-ion Thruster 14656 | -5/Factory | Lost 3 parts (1n2u) 14699 | -5/Factory | Central database locked down 14904 | -5/Factory | Discovered new exit (range 11) 15027 | -5/Factory | Entered Upper Caves 15179 | -5/Upper Caves | Learned Factory stockpile data 15205 | -5/Upper Caves | Lost 4 parts (3n1u) 15205 | -5/Upper Caves | Discovered new exit (range 9) 15224 | -5/Upper Caves | Identified exit to Upper Caves 15224 | -5/Upper Caves | Entered another Upper Caves area 15226 | -5/Upper Caves | Attracted the attention of an 0b10 checkpoint 15264 | -5/Upper Caves | Discovered new exit (range 10) 15268 | -5/Upper Caves | Identified exit to Factory 15270 | -5/Upper Caves | Ambushed by research squad 15270 | -5/Upper Caves | Entered Factory 15270 | -4/Factory | Evolved 2 slots: Utility x2 15271 | -4/Factory | Identified exit to Extension 15378 | -4/Factory | Fabricated Utility Shielding? 15635 | -4/Factory | Build established: Hacker-Ninja 15653 | -4/Factory | Identified exit to Upper Caves 15898 | -4/Factory | Spotted Executioner 15899 | -4/Factory | Cargo convoy interrupted 15906 | -4/Factory | Core integrity fell below 50% 15930 | -4/Factory | Lost 9 parts (1p4n3u1w) 15944 | -4/Factory | Core integrity fell below 20% 15946 | -4/Factory | Destroyed by Y-64 Sentinel with Wave Gun Last Messages --------------- 15918_ Field strength at 61. 15919_ Field strength at 51. 15920_ Field strength at 38. 15921_ Field strength at 26. 15922_ Field strength at 10. 15922_ Stasis field depleted. 15923_ S-27 Virus destroyed. 15930_ Penetrated by Slug. 15943_ Slammed into P-70 Sage. 15943_ Power Conduit explodes. 15943_ Utility Shielding destroyed. 15943_ Adv. Transmission Jammer destroyed. 15943_ Power Conduit explodes. 15943_ P-70 Sage destroyed. 15943_ Power Conduit explodes. 15943_ S-27 Virus destroyed. 15943_ P-70 Sage destroyed. 15943_ S-27 Virus destroyed. 15944_ Slug penetrates Wall. 15946_ Imp. Hacking Suite destroyed. Map ----- +----------------------------------------------------+ | ?######+####?# #?????????????????????????????? | | ?????????????#*% #??????????????? ?????????????? | | ?????????????# #?????????????? ?????????????? | | ?????????????# ^ #???????????## ????????????? | | ????????##T ## ############ ????????????? | | ???? * ???????????? | | ???# %= ???????????? | | ???? = ???????????? | | ???? ??????????? | | ????? ??????????? | | ????? E ??????????? | | ????? g ??????????? | | ?????? ######g ??????????? | | ?????? #????# #######???????????? | | ??????? ?????# ??????????? | | ??????? ######?????# !Y ??????????? | | ???????? ???????????# ??????????? | | ??????????????????????# ?????????? | | ??????????????????????# ?????????? | | ??????????????########## ?????????? | | ??????????????# # ?????????? | | ??????????????# ;= ?????????? | | ??????????????# ;%[ ????????? | | ??????????????# ! * %[ ????????? | | ?????????""" # %p ????????? | | ????? @#####+#######??????????? | | ?????????""" ????????????????? | | ??????? ! ????????????? | | ?????? ?????????????? | | ?????? # ?????????????? | | ??????? ; # ?????????????? | | ??????? !!!; s ;# """ """ """ ???????????? | | ??????? !! ; s ## """ """ """????????????? | | ???????? !! ; #? """ """ ""?????????????? | | ????????####### *% #? "" ""????????????????? | | ??????????????# [#? ??? "?????????????????? | | ??????????????##########? ???? ?????????????????? | | ?????????????????????????##??????????????????????? | | | | | | | | | | | | | | | | | | | | | | | | | +----------------------------------------------------+ Best States ------------- Heat Dissipation 43 Energy Generation 18 Energy Capacity 250 Matter Stores 300 Matter Capacity 300 Sight Range 20 Terrain Scan Density 10 ECM Strength 2 Jamming Range 16 Armor Coverage 225 Resistance: KI 45 Resistance: TH 20 Resistance: EX 20 Resistance: EM 20 Resistance: I 20 Resistance: S 20 Resistance: P 20 Propulsion Shielding 66 Utility Shielding 33 Phase Shifting 5 Evasion (%) 82 Melee Accuracy 6 Offensive Hacking 56 Defensive Hacking 10 Authchip Count 1 Item Schematics ----------------- Utility Shielding | -9/Materials | Scanalyzed Mni. Grenade Launcher | -9/Materials | Scanalyzed Sml. Storage Unit | -9/Materials | Scanalyzed Wheel | -9/Materials | Scanalyzed Lgt. Armor Plating | -9/Materials | Scanalyzed Hacking Suite | -9/Materials | Scanalyzed System Shield | -8/Materials | Scanalyzed Cld. VTOL Module | -7/Factory | Scanalyzed Katana | -6/Factory | Scanalyzed Cld. Cesium-ion Thruster | -5/Factory | Scanalyzed Biomechanical Wings | -5/Factory | Scanalyzed Ripper | -5/Factory | Scanalyzed Robot Schematics ------------------ None Fabricated ------------ Hacking Suite | x1 | -7/Factory Utility Shielding | x2 | -4/Factory Repaired ---------- Mni. Grenade Launcher | 64% | -8/Materials System Shield | 50% | -8/Materials Utility Shielding | 8% | -7/Factory Cld. Cesium-ion Thruster | 57% | -5/Factory | Broken Studied --------- Beam Cannon | -9/Materials | Hacked Particle Gun | -9/Materials | Hacked Wheel | -9/Materials | Hacked Hvy. Assault Rifle | -9/Materials | Hacked Mni. Grenade Launcher | -9/Materials | Hacked Flail | -9/Materials | Hacked Katana | -8/Materials | Hacked Datajack | -8/Materials | Hacked Lgt. Deuterium Engine | -8/Materials | Hacked Greatsword | -7/Factory | Hacked Chainsword | -5/Factory | Hacked Mic. Nuclear Core | -5/Factory | Hacked Alien Tech Used ----------------- None Achievements -------------- Dodgeball, But With Guns Explorer Jackpot Junior Dev Sixth Sense Whoosh! Challenges ------------ None Game ------ Seed ConstructScanCharge Manual? 0 Play Time 03:25:13 Cumulative 76.5 hours Start 2026.01.31 @ 20:54:22 End 2026.02.01 @ 13:08:38 Sessions 3 Manual Loads 0 Difficulty Adventurer Special Mode None Game No. 113 Rogue 83 Adventurer 29 Explorer 1 Win Type - Total 0 Types 0/0/0/0/0/0/0/0/0/0 Lore% 17 Gallery% 40 Achievement% 31 Wizard Run 0 Options --------- Layout 1 ASCII 0 Keyboard 0 Movement Numpad Keybinds 0 Fullscreen 1 Font 24/Smallcaps Map View 50x35 Zoom Use 0% Tactical HUD 1 Map Filters NONE Filters NONE Steam 1 RUN: d96e29de-e388-460a-ae42-0565857c85ce